Cogmind - Beta 14 @@@ ROGUE MODE // 2025.02.20 @ 05:34:18 Player: Zeta Lockhart Result: Destroyed by Y-45 Defender with Heavy Assault Rifle Performance ------------- Evolutions (0) 0 Regions Visited (2) 400 Robots Destroyed (19) 95 Value Destroyed (424) 424 Prototype IDs (0) 0 Alien Tech Used (0) 0 Bonus (0) 0 TOTAL SCORE: 919 Bonus ------- None Cogmind --------- Core Integrity 0/250 Matter 268/300 Energy 74/100 System Corruption 2% Temperature Cool (9) Movement Hovering (80) Location -10/Mines Parts ------- > --- POWER (1) -------- (None) > --- PROPULSION (2) --- Combat Airjet > --- UTILITY (2) ------ Improved Heat Sink Small Storage Unit > --- WEAPON (2) ------- Medium Laser Heavy Assault Rifle > --- INVENTORY (8) ---- Ion Engine Hover Unit Improved Light Armor Plating Field Recycling Unit (0) Mini Grenade Launcher Peak State ------------ > --- POWER ------------ Ion Engine > --- PROPULSION ------- Hover Unit Combat Airjet > --- UTILITY ---------- Improved Heat Sink Small Storage Unit > --- WEAPON ----------- Particle Gun Heavy Assault Rifle > --- INVENTORY -------- Ion Engine Hover Unit Improved Light Armor Plating Field Recycling Unit Medium Laser Heavy Assault Rifle Mini Grenade Launcher [Rating: 16] Favorites ----------- Power Ion Engine Engine Ion Engine Propulsion Light Treads Treads Light Treads Hover Unit Combat Airjet Utility Small Storage Unit Device Seismic Detector Storage Small Storage Unit Weapon Small Laser Energy Gun Small Laser Ballistic Gun Assault Rifle Build | -11 -10 -10 ------- Run | Yrd Mat Min Slots Evolved . | . . . Power . | . . . Propulsion . | . . . Utility . | . . . Weapon . | . . . Parts Attached 18 | 8 2 8 Power 2 | 1 . 1 Engine 2 | 1 . 1 Core . | . . . Reactor . | . . . Propulsion 5 | 2 1 2 Treads 3 | 2 1 . Leg . | . . . Wheel . | . . . Hover 2 | . . 2 Flight . | . . . Utility 4 | 2 1 1 Device 3 | 1 1 1 Storage 1 | 1 . . Processor . | . . . Hackware . | . . . Protection . | . . . Artifact . | . . . Weapon 7 | 3 . 4 Energy Gun 4 | 2 . 2 Energy Cannon . | . . . Ballistic Gun 3 | 1 . 2 Ballistic Cannon . | . . . Launcher . | . . . Special Weapon . | . . . Impact Weapon . | . . . Slashing Weapon . | . . . Piercing Weapon . | . . . Special Melee Weapon . | . . . Unidentified Prototypes . | . . . Parts Lost 6 | . . 6 Power 2 | . . 2 Propulsion 1 | . . 1 Utility . | . . . Weapon 3 | . . 3 Highest Loss Streak 4 | . . 4 To Critical Strikes . | . . . Average Slot Usage (%) 96 | . 96 97 Engine 13 | . 14 12 Treads 20 | . 25 16 Hover 5 | . . 10 Device 14 | . 14 14 Storage 14 | . 14 14 Energy Gun 13 | . 14 13 Ballistic Gun 14 | . 14 14 Peak Build Rating 16 | 7 8 16 Average Rating 9 | 5 7 12 On Entrance 5 | . 7 8 Naked Turns . | . . . Heaviest Build 17 | 14 14 17 Greatest Support 40 | 40 40 40 Greatest Overweight (x) 1 | . . 1 Average Overweight (x) . | . . . Largest Inventory Capacity 8 | 8 8 8 Average Capacity 7 | 7 8 8 Most Carried 8 | 4 8 8 Average Carried 5 | 1 4 7 Final Capacity 8 | 8 8 8 Final Carried 8 | 1 8 5 Class Distribution -------------------- 83% | Mutant 16% | Scavenger-Mutant Dominant Class ---------------- Mutant | -10/Materials Mutant | -10/Mines Resources | -11 -10 -10 ----------- Run | Yrd Mat Min Matter Collected 466 | 174 166 126 Remotely . | . . . Salvage Created 552 | 20 249 283 Parts 44 | 2 25 17 Haulers Intercepted . | . . . Recyclers Shooed 4 | 1 1 2 Parts Field Recycled . | . . . Retrieved Matter . | . . . Parts Self-Destructed . | . . . Prevented . | . . . Kills | -11 -10 -10 ------- Run | Yrd Mat Min Combat Hostiles Destroyed 15 | . 6 9 Guns 15 | . 6 9 Classes Destroyed 6 | 1 4 1 Tunneler 1 | 1 . . Recycler 1 | . 1 . Watcher 2 | . 2 . Swarmer 7 | . 3 4 Grunt 7 | . 3 4 Sentry 1 | . . 1 Best Kill Streak 5 | 1 5 4 Combat Bots Only 4 | . 3 4 Max Kills in Single Turn 1 | 1 1 1 Gunslinging . | . . . Exploded . | . . . Melee . | . . . Uniques/NPCs Destroyed . | . . . Combat | -11 -10 -10 -------- Run | Yrd Mat Min Hostile Shots Fired 109 | . 22 87 Missed 26 | . 8 18 Damage Taken 1015 | . 146 869 Core 254 | . 9 245 Absorbed by Shields . | . . . Core Remaining (%) 100 | 100 . . Volleys Fired 52 | 2 14 36 Largest 2 | 2 2 2 Hottest 90 | 90 60 88 Shots Fired 101 | 4 27 70 Gun 101 | 4 27 70 Cannon . | . . . Launcher . | . . . Special . | . . . Kinetic 50 | . 14 36 Thermal 51 | 4 13 34 Explosive . | . . . Electromagnetic . | . . . Robot Hit Streak 8 | 2 6 8 Robot Miss Streak 5 | 1 2 5 Penetration Max . | . . . Secondary Targets 3 | . 1 2 Max Gunslinging Chain 1 | . 1 1 Shots Hit Robots 63 | 2 16 45 Core Hits 28 | 1 12 15 Critical Kills . | . . . Critical Parts Destroyed . | . . . Critical Strikes . | . . . Melee Attacks . | . . . Impact . | . . . Slashing . | . . . Piercing . | . . . Sneak Attacks . | . . . Combat Hostiles . | . . . Follow-up Attacks . | . . . Damage Inflicted 891 | 26 193 672 Guns 854 | 21 193 640 Cannons . | . . . Explosions . | . . . Melee . | . . . Ramming 37 | 5 . 32 Kinetic 410 | . 114 296 Thermal 444 | 21 79 344 Explosive . | . . . Electromagnetic . | . . . Impact . | . . . Slashing . | . . . Piercing . | . . . Highest Corruption 2 | . . 2 Average Corruption 2 | . . 2 Corruption Purged . | . . . Corruption Blocked . | . . . Effects 1 | . . 1 Data Loss (minor) 1 | . . 1 Overload Shots . | . . . Overflow Damage . | . . . Projectiles . | . . . Explosions . | . . . Melee . | . . . Knockbacks . | . . . Impact . | . . . Kinetic . | . . . Secondary . | . . . Self-Inflicted Damage 15 | . . 15 Shots . | . . . Rammed 10 | 1 . 9 Targets Rammed 10 | 1 . 9 Kicked . | . . . Crushed . | . . . Highest Temperature 60 | 60 24 8 Average Temperature 19 | 30 18 4 Received Heat Transfer 261 | . 24 237 Siege Activations . | . . . Robots Corrupted . | . . . Combat Hostiles . | . . . Parts Fried . | . . . Impact Corruptions . | . . . Robots Melted . | . . . Combat Hostiles . | . . . Parts Melted 3 | . . 3 Heat Transferred 1079 | 50 175 854 Parts Sabotaged . | . . . Parts Stolen . | . . . Parts Stripped . | . . . Power Chain Reactions . | . . . Alert | -11 -10 -10 ------- Run | Yrd Mat Min Peak Influence 318 | 5 202 318 Initial 78 | . 3 78 Average 145 | 3 109 222 Maximum Alert Level 1 | . 1 1 Low Security (%) 66 | 100 82 42 Level 1 33 | . 17 57 Level 2 . | . . . Level 3 . | . . . Level 4 . | . . . Level 5 . | . . . High Security . | . . . Max Security . | . . . Squads Dispatched 1 | . 1 . Investigation 1 | . 1 . Extermination . | . . . Reinforcement . | . . . Assault . | . . . Garrison . | . . . Intercept . | . . . Searches Triggered . | . . . Construction Impeded . | . . . Haulers Reinforced . | . . . Active Scanning Responses . | . . . Cargo Convoy Interrupts . | . . . Stealth | -11 -10 -10 --------- Run | Yrd Mat Min Distress Signals 1 | . 1 . Communications Jammed . | . . . Distress Signals . | . . . Times Spotted 24 | . 10 14 Peak Tracking Total 5 | . 5 3 Tactical Retreats 2 | . . 2 Traps | -11 -10 -10 ------- Run | Yrd Mat Min Traps Triggered 2 | . 2 . Indirectly . | . . . Trap Hack Attempts . | . . . Triggered . | . . . Disarmed . | . . . Reprogrammed . | . . . Reused . | . . . Traps Extracted . | . . . Installed . | . . . Triggered . | . . . Machines | -11 -10 -10 ---------- Run | Yrd Mat Min Machines Disabled . | . . . Max in Single Turn . | . . . Machines Repaired . | . . . Machines Dismantled . | . . . Machines Sabotaged . | . . . Overloaded Fab Kills . | . . . Hacking | -11 -10 -10 --------- Run | Yrd Mat Min Machines Accessed 3 | . 3 . Terminals 3 | . 3 . Fabricators . | . . . Repair Stations . | . . . Recycling Units . | . . . Scanalyzers . | . . . Garrison Access . | . . . Total Hacks 5 | . 5 . Successful 4 | . 4 . Failed 1 | . 1 . Catastrophic 1 | . 1 . Database Lockouts . | . . . Manual . | . . . Terminals 5 | . 5 . Fabricators . | . . . Repair Stations . | . . . Recycling Units . | . . . Scanalyzers . | . . . Garrison Access . | . . . Terminal Hacks 4 | . 4 . Branch Access Points 1 | . 1 . Emergency Access Points 1 | . 1 . Investigation Status 1 | . 1 . Zone Layout 1 | . 1 . Fabricator Hacks . | . . . Repair Station Hacks . | . . . Recycling Unit Hacks . | . . . Scanalyzer . | . . . Garrison Access Hacks . | . . . Unauthorized Hacks . | . . . Terminals . | . . . Fabricators . | . . . Repair Stations . | . . . Recycling Units . | . . . Scanalyzers . | . . . Garrison Access . | . . . Data Cores Recovered . | . . . Used . | . . . Hacking Detections 1 | . 1 . Full Trace Events . | . . . Feedback Events . | . . . Feedback Blocked . | . . . Robot Schematics Acquired . | . . . Robots Built . | . . . Authchips . | . . . Time . | . . . Total Robot Build Rating . | . . . Part Schematics Acquired . | . . . Parts Built . | . . . Authchips . | . . . Time . | . . . Total Part Build Rating . | . . . Parts Repaired . | . . . Time . | . . . Parts Recycled . | . . . Recycled Matter . | . . . Retrieved Matter . | . . . Retrieved Components . | . . . Parts Scanalyzed . | . . . Part Schematics Acquired . | . . . Parts Damaged . | . . . Bothacking | -11 -10 -10 ------------ Run | Yrd Mat Min Used RIF Installer . | . . . Robots Hacked . | . . . Non-combat . | . . . Combat . | . . . Robot Hacks Applied . | . . . Relay Couplers Released . | . . . Fabnet Peak Effective % . | . . . Robots Rewired . | . . . Allies Hacked . | . . . Hacks Repelled . | . . . Allies | -11 -10 -10 -------- Run | Yrd Mat Min Total Allies . | . . . Largest Group . | . . . Highest-Rated Group . | . . . Highest-Rated Ally . | . . . Total Orders . | . . . Ally Attacks . | . . . Total Damage . | . . . Kills . | . . . Allies Corrupted . | . . . Allies Melted . | . . . Intel | -11 -10 -10 ------- Run | Yrd Mat Min Robot Analysis Total . | . . . Derelict Logs Recovered 1 | . . 1 Drone Launches . | . . . Drone Recoveries . | . . . Exploration | -11 -10 -10 ------------- Run | Yrd Mat Min Turns Passed 797 | 104 340 353 Spaces Moved 417 | 59 179 179 Core 12 | 12 . . Treads 297 | 47 179 71 Legs . | . . . Wheels . | . . . Hover 108 | . . 108 Flight . | . . . Fastest Speed 50 | 50 160 66 Average Speed 132 | 137 160 103 Slowest Speed 160 | 160 160 160 Overloaded Moves . | . . . Propulsion Burnouts . | . . . Robots Hopped . | . . . Cave-ins Triggered . | . . . Exploration Rate (%) 30 | 4 39 48 Regions Visited 2 Branch Regions 1 Pre-discovered Areas . | . . . Known Exits Taken 1 | . 1 . Unknown Exits Taken 1 | 1 . . Scrap Searched . | . . . Spaces Dug . | . . . Terrain Destroyed . | . . . Melee . | . . . Projectile . | . . . AOE . | . . . Terrain Rammed . | . . . Walls Destroyed . | . . . Machines Disabled . | . . . Actions | -11 -10 -10 --------- Run | Yrd Mat Min Total 562 | 77 207 278 Wait 38 | . . 38 Move 416 | 59 178 179 Hop . | . . . Pick Up 21 | 8 9 4 Fast Attach 1 | . 1 . Attach 15 | 7 1 7 Detach 1 | . 1 . Swap 2 | 1 . 1 Drop 7 | . 3 4 Fire 52 | 2 14 36 Melee . | . . . Ram 8 | . . 8 Kick . | . . . Crush 1 | . . 1 Escape Stasis . | . . . Rewire . | . . . Trap . | . . . Miscellaneous . | . . . Route ------- -11/Scrapyard -10/Materials (discovered 2 exits: [*Mat] / *Min) -10/Mines History --------- Turn | Location | Event 8 | -11/Scrapyard | Discovered new exit (range 16) 105 | -11/Scrapyard | Entered Materials 243 | -10/Materials | Identified exit to Mines 286 | -10/Materials | Discovered new exit (range 11) 312 | -10/Materials | Build established: Mutant 445 | -10/Materials | Entered Mines 535 | -10/Mines | Assembled infested the area 687 | -10/Mines | Learned 8 Materials zone layouts 762 | -10/Mines | Joined a pair of Derelicts in attacking an 0b10 outpost 772 | -10/Mines | Core integrity fell below 50% 788 | -10/Mines | Core integrity fell below 20% 798 | -10/Mines | Destroyed by Y-45 Defender with Heavy Assault Rifle Last Messages --------------- 00714_ Particle Gun melted. 00714_ G-47 Trooper destroyed. 00717_ Acquired 22 matter. 00720_ Acquired Lgt. Ion Engine. 00722_ Acquired 10 matter. 00751_ K-01 Serf collects debris. 00762_ A derelict emerges from the shadows: "We've had our eye on this brand new outpost for a little while, just waiting for an opportunity to strike. Need some help?" 00764_ 2C-B2E(g) destroyed. 00765_ MR-O23(g) suffers critical hit (Burn). 00765_ MR-O23(g) destroyed. 00768_ Hover Unit destroyed. 00774_ Particle Gun destroyed. 00786_ Lgt. Ion Engine destroyed. 00787_ Hvy. Assault Rifle destroyed. 00790_ Y-45 Defender heat damages Beam Rifle. 00790_ Imp. Ion Engine melted. 00790_ Heat Sink melted. 00790_ Y-45 Defender destroyed. Map ----- +----------------------------------------------------+ | ?????????????????????????????? | | ?????????????????????????????? | | ?????????????????????????????? | | ?????????????????????????????? | | ?????????????????????????????? | | ?????????????????????????????? | | ?????????????????????????????? | | ?????????????????????????????? | | ????????????????? ???????????? | | ????????????????? ???????????? | | ????????????????? ???????????? | | ????????????????? ???????????? | | ????????????????? ???????????? | | ????????????????? ???????????? | | ????????????????? ???????????? | | ????????????????# #?????###### | | ????????????????# #?????# | | ????????????????# #?????# #### | | ????????????????# #?????# #??? | | ????######??##### #?????# #??? | | ???##"!!"#### ## #?????# #??? | | ???# "!!""## # ####### #### | | ???# # | | ??#?# %%*## | | ?## ##;Y### ########## ### | | ?# @!!= ##????????# #?? | | ?# ####?????????# ### | | ?## ##???????????## | | ??## ##????????????# | | ???## ##?????????????# | | ????## ##??????????????## | | ?????####????????????????#### | | ?????????????????????????????# | | ?????????????????????????????? | | ?????????????????????????????? | | ?????????????????????????????? | | ?????????????????????????????? | | ?????????????????????????????? | | ?????????????????????????????? | | ??????????????????# ######### | | ??????????????????# = | | ??????????????????# =% | | ??????????????????#####""# ### | | ??????????????????????#### #?# | | ??????????????????????## #?# | | ?????????????????????## #?# | | ????????????????????## ### | | ????????????????????# | | ????????????????????# ## | | ????????????????????# ##? | +----------------------------------------------------+ Best States ------------- Heat Dissipation 39 Energy Generation 10 Energy Capacity 250 Matter Stores 300 Matter Capacity 300 Sight Range 16 Terrain Scan Density 10 Evasion (%) 51 Recoil Reduction 2 Item Schematics ----------------- None Robot Schematics ------------------ None Fabricated ------------ Nothing Alien Tech Used ----------------- None Achievements -------------- None Challenges ------------ None Game ------ Seed VariableTowerWartreads Manual? 0 Play Time 00:14:23 Cumulative 36.0 hours Start 2025.02.20 @ 05:22:31 End 2025.02.20 @ 05:34:18 Sessions 1 Manual Loads 0 Difficulty Rogue Special Mode None Game No. 34 Rogue 34 Adventurer 0 Explorer 0 Win Type - Total 0 Types 0/0/0/0/0/0/0/0/0 Lore% 3 Gallery% 27 Achievement% 21 Wizard Run 0 Options --------- Layout 0 ASCII 0 Keyboard 0 Movement Mouse Keybinds 0 Fullscreen 2 Font 12/Smallcaps Map View 41x27 Zoom Use 99% Tactical HUD 1 Map Filters NONE Filters NONE Steam 1 RUN: 0f1d7985-4880-4a34-8894-a563cba561b2